fUST/lending_fUST_20240927
["ID","MTS","AMOUNT","RATE_DAILY","PERIOD"]
[339225445,1727375440830,-1054.31852914,0.00015106,2]
[339225446,1727375440839,-1054.31852914,0.00015106,2]
[339225447,1727375440849,-1054.31852914,0.00015106,2]
[339225448,1727375440859,-1054.31852914,0.00015106,2]
[339225449,1727375440869,-1054.31852914,0.00015106,2]
[339225450,1727375440878,-1054.31852914,0.00015106,2]
[339225451,1727375440889,-1054.31852914,0.00015106,2]
[339225452,1727375440898,-1054.31852914,0.00015106,2]
[339225453,1727375440908,-1054.31852914,0.00015106,2]
[339225454,1727375440917,-1054.31852914,0.00015106,2]
[339225455,1727375440927,-1054.31852914,0.00015106,2]
[339225456,1727375440936,-1054.31852914,0.00015106,2]
[339225457,1727375440949,-55710.43864622,0.00015108,2]
[339225458,1727375440959,-292.56867926,0.00015108,2]
[339225459,1727375440969,-500.78881432,0.00015173,2]
[339225460,1727375440979,-500.0,0.00015173,2]
[339225461,1727375440988,-500.0,0.00015173,2]
[339225462,1727375440999,-166.666666,0.00015421,2]
[339225463,1727375441009,-192.625951,0.00015626,2]
[339225464,1727375441019,-1000.0,0.00015721,2]
[339225465,1727375441034,-166.666666,0.00015774,2]
[339225466,1727375441043,-150.0,0.00016,2]
[339225467,1727375441053,-166.666666,0.00016126,2]
[339225468,1727375441063,-500.0,0.00016133,2]
[339225469,1727375441074,-500.0,0.00016133,2]
[339225470,1727375441085,-500.0,0.00016164,2]
[339225471,1727375441096,-500.0,0.000164,2]
[339225472,1727375441108,-166.666666,0.00016479,2]
[339225473,1727375441118,-420.0,0.00016531,2]
[339225474,1727375441129,-420.0,0.00016617,2]
[339225475,1727375441139,-501.2880644,0.00016681,2]
[339225476,1727375441149,-500.0,0.00016722,2]
[339225477,1727375441159,-166.666666,0.00016832,2]
[339225478,1727375441169,-192.625951,0.00016995,2]
[339225479,1727375441179,-112338.970466,0.00017245,2]
[339225480,1727375441188,-585.13735852,0.00017245,2]
[339225481,1727375441200,-56169.4852329,0.00017255,2]
[339225482,1727375441212,-292.56867926,0.00017255,2]
[339225483,1727375441222,-151.0,0.00017265,2]
[339225484,1727375441233,-151.0,0.00017265,2]
[339225485,1727375441243,-151.0,0.00017265,2]
[339225486,1727375441253,-151.0,0.00017265,2]
[339225487,1727375441263,-485.492217,0.00017265,2]
[339225488,1727375441272,-485.492217,0.00017265,2]
[339225489,1727375441282,-198.631228,0.00017265,2]
[339225490,1727375441291,-198.631228,0.00017265,2]
[339225491,1727375441301,-24900.0,0.00017265,2]
[339225492,1727375441310,-500.0,0.00017273,2]
[339225493,1727375441320,-500.0,0.00017273,2]
[339225494,1727375441329,-500.0,0.00017273,2]
[339225495,1727375441339,-874.91699905,0.0001764,2]
[339225496,1727375441348,-366.35752811,0.00017821,2]
[339225497,1727375441358,-500.0,0.00017821,2]
[339225498,1727375441368,-537.79400279,0.00017821,2]
[339225499,1727375441377,-160.0,0.00018075,3]
[339225500,1727375441388,-587.0,0.0001809,2]
[339225501,1727375441398,-6487.83515477,0.00018144,2]
[339225502,1727375441408,-587.0,0.00018278,2]
[339225503,1727375441418,-10698.86638908,0.00018447,2]
[339225504,1727375441427,-6487.83515477,0.00018458,2]
[339225505,1727375441437,-248.060011,0.00018505,2]
[339225506,1727375441447,-151.0,0.00018505,2]
[339225507,1727375441456,-151.0,0.00018505,2]
[339225508,1727375441466,-485.492217,0.00018505,2]
[339225509,1727375441475,-485.492217,0.00018505,2]
[339225510,1727375441484,-198.631228,0.00018505,2]
[339225511,1727375441493,-2000.0,0.00018505,2]
[339225512,1727375441503,-2000.0,0.00018505,2]
[339225513,1727375441512,-2000.0,0.00018505,2]
[339225514,1727375441521,-2019.308315,0.00018505,2]
[339225515,1727375441531,-198.631228,0.00018505,2]
[339225516,1727375441540,-56169.4852329,0.00018505,2]
[339225517,1727375441550,-292.56867926,0.00018505,2]
[339225518,1727375441560,-485.49584995,0.00018522,2]
[339225519,1727375441569,-599.91,0.000186,2]
[339225520,1727375441579,-6487.83515477,0.00018889,2]
[339225521,1727375441588,-155.171707,0.000189,2]
[339225522,1727375441597,-500.0,0.00018904,2]
[339225523,1727375441607,-151.0,0.0001898,2]
[339225524,1727375441617,-151.0,0.0001898,2]
[339225525,1727375441626,-485.492217,0.0001898,2]
[339225526,1727375441636,-485.492217,0.0001898,2]
[339225527,1727375441646,-198.631228,0.0001898,2]
[339225528,1727375441656,-198.631228,0.0001898,2]
[339225529,1727375441665,-5052.25513575,0.0001898,3]
[339225647,1727376140768,193.52074,0.00014055,2]
[339225653,1727376243808,24900.0,0.00014057,2]
[339225654,1727376262293,371.59334877,0.00021,120]
[339225655,1727376335151,-250.0,0.00014215,2]
[339225656,1727376335177,-250.0,0.00014254,2]
[339225657,1727376335200,-250.0,0.00014293,2]
[339225658,1727376335223,-250.0,0.00014332,2]
[339225659,1727376335245,-203.015831,0.00014353,2]
[339225660,1727376335270,-250.0,0.00014371,2]
[339225661,1727376335297,-250.0,0.0001441,2]
[339225662,1727376335323,-250.0,0.00014449,2]
[339225663,1727376335347,-250.0,0.00014488,2]
[339225664,1727376335371,-250.0,0.00014527,2]
[339225665,1727376335393,-250.0,0.00014566,2]
[339225666,1727376335600,-250.0,0.00014605,2]
[339225667,1727376335630,-250.0,0.00014644,2]
[339225668,1727376335655,-250.0,0.00014683,2]
[339225669,1727376335679,-250.0,0.00014722,2]
[339225670,1727376335703,-250.0,0.00014761,2]
[339225671,1727376335725,-250.0,0.000148,2]
[339225672,1727376335746,-250.0,0.00014839,2]
[339225673,1727376335768,-250.0,0.00014878,2]
[339225674,1727376335793,-250.0,0.00014917,2]
[339225675,1727376335816,-250.0,0.00014956,2]
[339225676,1727376335838,-162.82728621,0.00014968,2]
[339225677,1727376335860,-179.3000909,0.00014999,2]
[339225678,1727376335882,-164.10197697,0.00015001,2]
[339225679,1727376335903,-2858.58682512,0.00015001,2]
[339225680,1727376335924,-166.666666,0.00015068,2]
[339225681,1727376335946,-300.0,0.00015098,2]
[339225682,1727376335970,-300.0,0.00015098,2]
[339225683,1727376335993,-230.74659315,0.00015099,2]
[339225684,1727376336019,-548.41506551,0.00015099,2]
[339225685,1727376336049,-548.41506551,0.00015099,2]
[339225686,1727376336074,-548.41506551,0.00015099,2]
[339225687,1727376336099,-548.41506551,0.00015099,2]
[339225688,1727376336125,-548.41506551,0.00015099,2]
[339225689,1727376336151,-548.41506551,0.00015099,2]
[339225690,1727376336177,-548.41506551,0.00015099,2]
[339225691,1727376336201,-548.41506551,0.00015099,2]
[339225692,1727376336226,-548.41506551,0.00015099,2]
[339225693,1727376336251,-548.41506551,0.00015099,2]
[339225694,1727376336277,-548.41506551,0.00015099,2]
[339225695,1727376336304,-548.41506551,0.00015099,2]
[339225696,1727376336328,-548.41506551,0.00015099,2]
[339225697,1727376336352,-548.41506551,0.00015099,2]
[339225698,1727376336379,-548.41506551,0.00015099,2]
[339225699,1727376336403,-548.41506551,0.00015099,2]
[339225700,1727376336428,-548.41506551,0.00015099,2]
[339225701,1727376336451,-548.41506551,0.00015099,2]
[339225702,1727376336475,-548.41506551,0.00015099,2]
[339225703,1727376336499,-548.41506551,0.00015099,2]
[339225704,1727376336523,-548.41506551,0.00015099,2]
[339225705,1727376336547,-548.41506551,0.00015099,2]
[339225706,1727376336572,-548.41506551,0.00015099,2]
[339225707,1727376336598,-548.41506551,0.00015099,2]
[339225708,1727376336628,-548.41506551,0.00015099,2]
[339225709,1727376336654,-548.41506551,0.00015099,2]
[339225710,1727376336679,-548.41506551,0.00015099,2]
[339225711,1727376336707,-548.41506551,0.00015099,2]
[339225712,1727376336731,-548.41506551,0.00015099,2]
[339225713,1727376336757,-548.41506551,0.00015099,2]
[339225714,1727376336781,-548.41506551,0.00015099,2]
[339225715,1727376336804,-548.41506551,0.00015099,2]
[339225716,1727376336827,-548.41506551,0.00015099,2]
[339225717,1727376336851,-548.41506551,0.00015099,2]
[339225718,1727376336874,-548.41506551,0.00015099,2]
[339225719,1727376336898,-548.41506551,0.00015099,2]
[339225720,1727376336921,-548.41506551,0.00015099,2]
[339225721,1727376336947,-548.41506551,0.00015099,2]
[339225722,1727376336971,-548.41506551,0.00015099,2]
[339225723,1727376336994,-548.41506551,0.00015099,2]
[339225724,1727376337017,-548.41506551,0.00015099,2]
[339225725,1727376337042,-548.41506551,0.00015099,2]
[339225726,1727376337066,-548.41506551,0.00015099,2]
[339225727,1727376337089,-548.41506551,0.00015099,2]
[339225728,1727376337112,-843.14297527,0.00015099,2]
[339225729,1727376337135,-843.14297527,0.00015099,2]
[339225730,1727376337158,-843.14297527,0.00015099,2]
[339225731,1727376337182,-843.14297527,0.00015099,2]
[339225732,1727376337205,-843.14297527,0.00015099,2]
[339225733,1727376337228,-843.14297527,0.00015099,2]
[339225734,1727376337252,-843.14297527,0.00015099,2]
[339225735,1727376337276,-843.14297527,0.00015099,2]
[339225736,1727376337303,-843.14297527,0.00015099,2]
[339225737,1727376337327,-843.14297527,0.00015099,2]
[339225738,1727376337355,-843.14297527,0.00015099,2]
[339225739,1727376337379,-843.14297527,0.00015099,2]
[339225740,1727376337404,-843.14297527,0.00015099,2]
[339225741,1727376337429,-843.14297527,0.00015099,2]
[339225742,1727376337452,-843.14297527,0.00015099,2]
[339225743,1727376337477,-843.14297527,0.00015099,2]
[339225744,1727376337501,-843.14297527,0.00015099,2]
[339225745,1727376337526,-843.14297527,0.00015099,2]
[339225746,1727376337550,-843.14297527,0.00015099,2]
[339225747,1727376337574,-843.14297527,0.00015099,2]
[339225748,1727376337599,-843.14297527,0.00015099,2]
[339225749,1727376337624,-843.14297527,0.00015099,2]
[339225750,1727376337647,-843.14297527,0.00015099,2]
[339225751,1727376337672,-843.14297527,0.00015099,2]
[339225752,1727376337698,-843.14297527,0.00015099,2]
[339225753,1727376337722,-843.14297527,0.00015099,2]
[339225754,1727376337745,-843.14297527,0.00015099,2]
[339225755,1727376337770,-843.14297527,0.00015099,2]
[339225756,1727376337794,-843.14297527,0.00015099,2]
[339225757,1727376337817,-846.89027739,0.00015099,2]
[339225758,1727376337841,-846.89027739,0.00015099,2]
[339225759,1727376337866,-846.89027739,0.00015099,2]
[339225760,1727376337889,-846.89027739,0.00015099,2]
[339225761,1727376337913,-846.89027739,0.00015099,2]
[339225762,1727376337938,-846.89027739,0.00015099,2]
[339225763,1727376337962,-846.89027739,0.00015099,2]
[339225764,1727376337986,-846.89027739,0.00015099,2]
[339225765,1727376338011,-846.89027739,0.00015099,2]
[339225766,1727376338035,-846.89027739,0.00015099,2]
[339225767,1727376338058,-846.89027739,0.00015099,2]
[339225768,1727376338083,-846.89027739,0.00015099,2]
[339225769,1727376338106,-846.89027739,0.00015099,2]
[339225770,1727376338130,-846.89027739,0.00015099,2]
[339225771,1727376338153,-846.89027739,0.00015099,2]
[339225772,1727376338177,-846.89027739,0.00015099,2]
[339225773,1727376338200,-846.89027739,0.00015099,2]
[339225774,1727376338224,-846.89027739,0.00015099,2]
[339225775,1727376338250,-846.89027739,0.00015099,2]
[339225776,1727376338272,-502.95174599,0.00015173,2]
[339225777,1727376338297,-464.7233069,0.00015306,2]
[339225778,1727376338318,-166.666666,0.00015421,2]
[339225779,1727376338340,-179.3000909,0.0001546,2]
[339225780,1727376338364,-203.015831,0.00015723,2]
[339225781,1727376338384,-166.666666,0.00015774,2]
[339225782,1727376338405,-500.0,0.000159,2]
[339225783,1727376338425,-179.3000909,0.0001592,2]
[339225784,1727376338446,-254.93310947,0.00015984,2]
[339225785,1727376338467,-3000.0,0.00016,2]
[339225786,1727376338488,-500.0,0.00016009,2]
[339225787,1727376338510,-593.33576064,0.00016009,2]
[339225788,1727376338532,-302.45120947,0.00016009,2]
[339225789,1727376338555,-500.0,0.00016009,2]
[339225790,1727376338577,-500.0,0.00016009,2]
[339225791,1727376338598,-388.05822213,0.00016009,2]
[339225792,1727376338620,-500.0,0.00016009,2]
[339225793,1727376338641,-500.0,0.00016009,2]
[339225794,1727376338662,-500.0,0.00016009,2]
[339225795,1727376338687,-157.63326986,0.00016009,2]
[339225796,1727376338708,-500.0,0.00016009,2]
[339225797,1727376338730,-500.0,0.00016009,2]
[339225798,1727376338752,-500.0,0.00016009,2]
[339225799,1727376338773,-216.57323107,0.0001601,2]
[339225800,1727376338794,-3000.0,0.0001601,2]
[339225801,1727376338817,-44378.80568364,0.0001601,2]
[339225803,1727376355111,-12388.88396226,0.0001601,2]
[339225804,1727376355133,-77043.9308628,0.0001601,2]
[339225805,1727376355155,-3000.0,0.0001602,2]
[339225806,1727376355177,-3000.0,0.0001603,2]
[339225807,1727376355200,-3000.0,0.0001604,2]
[339225808,1727376355221,-3000.0,0.0001605,2]
[339225809,1727376355242,-3000.0,0.0001606,2]
[339225810,1727376355263,-3000.0,0.0001607,2]
[339225811,1727376355285,-500.45794701,0.00016073,2]
[339225812,1727376355306,-3000.0,0.0001608,2]
[339225813,1727376355328,-3000.0,0.0001609,2]
[339225814,1727376355348,-300.0,0.000161,6]
[339225815,1727376355372,-3000.0,0.000161,2]
[339225816,1727376355392,-3000.0,0.0001611,2]
[339225817,1727376355413,-3000.0,0.0001612,2]
[339225818,1727376355433,-166.666666,0.00016126,2]
[339225819,1727376355456,-4202.923682,0.0001613,2]
[339225820,1727376355477,-500.0,0.00016164,2]
[339225821,1727376355499,-1125.10540032,0.00016448,2]
[339225822,1727376355521,-166.666666,0.00016479,2]
[339225823,1727376355543,-420.0,0.00016522,2]
[339225824,1727376355565,-420.0,0.00016608,2]
[339225825,1727376355587,-271.331706,0.00016828,2]
[339225826,1727376355609,-235.107178,0.00016828,2]
[339225827,1727376355629,-166.666666,0.00016832,2]
[339225828,1727376355651,-150.112233,0.00017,2]
[339225829,1727376355672,-271.331706,0.00017039,2]
[339225830,1727376355693,-235.107178,0.00017039,2]
[339225831,1727376355715,-164.10197696,0.00017154,2]
[339225832,1727376355736,-271.331706,0.00017249,2]
[339225833,1727376355757,-235.107178,0.00017249,2]
[339225834,1727376355777,-151.0,0.00017265,2]
[339225835,1727376355799,-151.0,0.00017265,2]
[339225836,1727376355819,-150.112233,0.000173,2]
[339225837,1727376355840,-271.331706,0.0001746,2]
[339225838,1727376355861,-235.107178,0.0001746,2]
[339225839,1727376355884,-150.112233,0.000176,2]
[339225840,1727376355905,-741.6960515,0.0001764,2]
[339225841,1727376355928,-271.331706,0.0001767,2]
[339225842,1727376355953,-235.107178,0.0001767,2]
[339225843,1727376355974,-150.112233,0.000179,2]
[339225844,1727376355996,-587.0,0.00018081,2]
[339225845,1727376356016,-336.6746109,0.0001811,2]
[339225846,1727376356037,-306.0,0.0001811,2]
[339225847,1727376356059,-150.112233,0.000182,2]
[339225848,1727376356080,-587.0,0.00018269,2]
[339225849,1727376356101,-150.112235,0.000184,2]
[339225850,1727376356120,-30604.74942102,0.000184,2]
[339225851,1727376356141,-500.0,0.00018473,2]
[339225852,1727376356162,-500.0,0.00018473,2]
[339225853,1727376356182,-500.46350857,0.00018473,2]
[339225854,1727376356204,-500.0,0.00018473,2]
[339225855,1727376356225,-507.45875307,0.00018473,2]
[339225856,1727376356247,-500.0,0.00018473,2]
[339225857,1727376356271,-20782.56793059,0.00018495,2]
[339225858,1727376433121,-502.46159448,0.00015073,2]
[339225859,1727376433142,-500.0,0.00017254,2]
[339225860,1727376433164,-227.004867,0.0001739,2]
[339225861,1727376433186,-227.004867,0.00018075,2]
[339225862,1727376433206,-500.0,0.00018076,2]
[339225863,1727376433228,-300.0,0.00018493,2]
[339225864,1727376433250,-621.64075549,0.00018494,2]
[339225865,1727376433275,-500.0,0.00018494,2]
[339225866,1727376433299,-211.71584662,0.00018494,2]
[339225867,1727376433325,-415.33503245,0.00018494,2]
[339225868,1727376433349,-410.3432889,0.00018494,2]
[339225869,1727376433373,-500.0,0.00018494,2]
[339225870,1727376433396,-500.0,0.00018494,2]
[339225871,1727376433421,-500.0,0.00018494,2]
[339225872,1727376433444,-500.0,0.00018494,2]
[339225873,1727376433469,-500.0,0.00018494,2]
[339225874,1727376433494,-500.0,0.00018494,2]
[339225875,1727376433520,-500.0,0.00018494,2]
[339225876,1727376433543,-500.0,0.00018494,2]
[339225877,1727376433567,-614.15867578,0.00018494,2]
[339225878,1727376433591,-500.0,0.00018494,2]
[339225879,1727376433615,-500.0,0.00018494,2]
[339225880,1727376433639,-500.0,0.00018494,2]
[339225881,1727376433663,-500.0,0.00018494,2]
[339225882,1727376433687,-500.0,0.00018494,2]
[339225883,1727376433710,-35985.12171531,0.00018495,2]
[339225884,1727376433731,-77043.9308628,0.00018495,2]
[339225885,1727376433751,-160.0,0.000185,3]
[339225886,1727376433774,-150.112233,0.000185,2]
[339225887,1727376433795,-151.0,0.00018505,2]
[339225888,1727376433815,-478.83480258,0.00018522,2]
[339225889,1727376433836,-218.075,0.00018632,2]
[339225890,1727376433856,-150.0,0.00018633,2]
[339225891,1727376433878,-151.00831979,0.00018635,2]
[339225892,1727376433899,-151.0,0.00018666,2]
[339225893,1727376433922,-593.319675,0.00018666,2]
[339225894,1727376433945,-593.319675,0.00018666,2]
[339225895,1727376433968,-151.0,0.00018666,2]
[339225896,1727376433993,-3778.45805158,0.00018666,2]
[339225897,1727376434015,-1000.0,0.00018667,2]
[339225898,1727376434037,-22706.23486236,0.00018667,2]
[339225899,1727376434059,-485.492217,0.00018667,2]
[339225900,1727376434082,-485.492217,0.00018667,2]
[339225901,1727376434102,-151.0,0.00018667,2]
[339225902,1727376434124,-281.366768,0.00018667,2]
[339225903,1727376434146,-281.366768,0.00018667,2]
[339225904,1727376434167,-151.0,0.00018667,2]
[339225905,1727376434189,-383.419228,0.00018667,2]
[339225906,1727376434211,-383.419228,0.00018667,2]
[339225907,1727376434232,-599.91,0.000187,2]
[339225908,1727376434253,-150.112233,0.000187,2]
[339225909,1727376434276,-151.0,0.00018756,2]
[339225910,1727376434297,-151.0,0.00018756,2]
[339225911,1727376434323,-151.0,0.00018756,2]
[339225912,1727376434345,-151.0,0.00018756,2]
[339225913,1727376434365,-151.0,0.00018756,2]
[339225914,1727376434387,-151.0,0.00018756,2]
[339225915,1727376434410,-151.0,0.00018756,2]
[339225916,1727376434432,-371.194741,0.00018756,2]
[339225917,1727376434459,-371.194741,0.00018756,2]
[339225918,1727376434480,-151.0,0.00018756,2]
[339225919,1727376434502,-151.0,0.00018756,2]
[339225920,1727376434525,-151.0,0.00018756,2]
[339225921,1727376434548,-215.867688,0.00018756,2]
[339225922,1727376434569,-215.867688,0.00018756,2]
[339225923,1727376434590,-151.0,0.00018756,2]
[339225924,1727376434611,-151.0,0.00018756,2]
[339225925,1727376434633,-151.870809,0.00018756,2]
[339225926,1727376434657,-151.0,0.00018756,2]
[339225927,1727376434679,-485.492217,0.00018756,2]
[339225928,1727376434700,-485.492217,0.00018756,2]
[339225929,1727376434720,-151.0,0.00018756,2]
[339225930,1727376434741,-151.0,0.00018756,2]
[339225931,1727376434768,-151.0,0.00018756,2]
[339225932,1727376434792,-281.366768,0.00018756,2]
[339225933,1727376434814,-281.366768,0.00018756,2]
[339225934,1727376434835,-593.319675,0.00018756,2]
[339225935,1727376434856,-593.319675,0.00018756,2]
[339225936,1727376434878,-151.0,0.00018756,2]
[339225937,1727376434899,-383.419228,0.00018756,2]
[339225938,1727376435044,-151.0,0.00018756,2]
[339225939,1727376435071,-383.419228,0.00018756,2]
[339225940,1727376435094,-56767.6896459,0.00018756,2]
[339225941,1727376435116,-77043.9308628,0.00018756,2]
[339225942,1727376435137,-227.004867,0.0001876,2]
[339225943,1727376435158,-2000.0,0.00018766,2]
[339225944,1727376435181,-2000.0,0.00018766,2]
[339225945,1727376435202,-2000.0,0.00018766,2]
[339225946,1727376435224,-2000.0,0.00018766,2]
[339225947,1727376435246,-2000.0,0.00018766,2]
[339225948,1727376435272,-2000.0,0.00018766,2]
[339225949,1727376435293,-2000.0,0.00018766,2]
[339225950,1727376435318,-2000.0,0.00018766,2]
[339225951,1727376435339,-2000.0,0.00018766,2]
[339225952,1727376435362,-2000.0,0.00018766,2]
[339225953,1727376435385,-2000.0,0.00018766,2]
[339225954,1727376435406,-2000.0,0.00018766,2]
[339225955,1727376435429,-2000.0,0.00018766,2]
[339225956,1727376435450,-485.492217,0.00018766,2]
[339225957,1727376435472,-485.492217,0.00018766,2]
[339225958,1727376435493,-151.0,0.00018766,2]
[339225959,1727376435520,-281.366768,0.00018766,2]
[339225960,1727376435542,-281.366768,0.00018766,2]
[339225961,1727376435563,-593.319675,0.00018766,2]
[339225962,1727376435586,-593.319675,0.00018766,2]
[339225963,1727376435609,-151.0,0.00018766,2]
[339225964,1727376435633,-151.0,0.00018766,2]
[339225965,1727376435654,-383.419228,0.00018766,2]
[339225966,1727376435677,-383.419228,0.00018766,2]
[339225967,1727376435699,-2858.58682509,0.00018772,2]
[339225968,1727376435720,-500.0,0.00018773,2]
[339225969,1727376435741,-500.0,0.00018773,2]
[339225970,1727376435765,-6570.12850789,0.00018799,2]
[339225971,1727376435787,-150.112233,0.000188,2]
[339225972,1727376435808,-366.67751789,0.00018898,2]
[339225973,1727376435830,-500.0,0.00018904,2]
[339225974,1727376435851,-151.0,0.00018961,2]
[339225975,1727376435872,-151.0,0.00018961,2]
[339225976,1727376435893,-151.0,0.00018961,2]
[339225977,1727376435915,-248.060011,0.00018961,2]
[339225978,1727376435938,-151.0,0.00018961,2]
[339225979,1727376435959,-151.0,0.00018961,2]
[339225980,1727376435981,-371.194741,0.00018961,2]
[339225981,1727376436003,-371.194741,0.00018961,2]
[339225982,1727376436025,-151.0,0.00018961,2]
[339225983,1727376436047,-152.436295,0.00018961,2]
[339225984,1727376436069,-215.867688,0.00018961,2]
[339225985,1727376436091,-151.0,0.00018961,2]
[339225986,1727376436112,-2000.0,0.00018961,2]
[339225987,1727376436134,-2000.0,0.00018961,2]
[339225988,1727376436155,-2000.0,0.00018961,2]
[339225989,1727376436176,-2019.308315,0.00018961,2]
[339225990,1727376436199,-215.867688,0.00018961,2]
[339225991,1727376436221,-151.0,0.00018961,2]
[339225992,1727376436243,-151.0,0.00018961,2]
[339225993,1727376436265,-151.0,0.00018961,2]
[339225994,1727376436286,-213.013136,0.00018961,2]
[339225995,1727376436309,-2000.0,0.00018969,2]
[339225996,1727376436331,-7050.01023737,0.0001897,2]
[339225997,1727376436352,-151.0,0.0001897,2]
[339225998,1727376436373,-151.0,0.0001897,2]
[339225999,1727376436396,-207.287527,0.0001897,2]
[339226000,1727376436417,-151.0,0.0001897,2]
[339226001,1727376436438,-153.513888,0.0001897,2]
[339226002,1727376436459,-151.0,0.0001897,2]
[339226003,1727376436480,-151.0,0.0001897,2]
[339226004,1727376436501,-156.381959,0.0001897,2]
[339226005,1727376436524,-156.381959,0.0001897,2]
[339226006,1727376436545,-2000.0,0.0001897,2]
[339226007,1727376436566,-2000.0,0.0001897,2]
[339226008,1727376436587,-1014.67680889,0.0001897,2]
[339226009,1727376436609,-56767.6896459,0.0001897,3]
[339226010,1727376436629,-77043.9308628,0.0001897,3]
[339226011,1727376436650,-485.492217,0.0001897,2]
[339226012,1727376436672,-485.492217,0.0001897,2]
[339226013,1727376436692,-151.0,0.0001897,2]
[339226014,1727376436714,-281.366768,0.0001897,2]
[339226015,1727376436736,-281.366768,0.0001897,2]
[339226016,1727376436760,-593.319675,0.0001897,2]
[339226017,1727376436780,-593.319675,0.0001897,2]
[339226018,1727376436802,-151.0,0.0001897,2]
[339226019,1727376436823,-151.0,0.0001897,2]
[339226020,1727376436845,-383.419228,0.0001897,2]
[339226021,1727376436866,-383.419228,0.0001897,2]
[339226022,1727376436888,-151.0,0.0001897,2]
[339226023,1727376436911,-151.0,0.0001897,2]
[339226024,1727376436930,-374.02611498,0.00018973,2]
[339226025,1727376436950,-537.79400279,0.00018973,2]
[339226026,1727376436971,-151.0,0.0001898,2]
[339226027,1727376436991,-151.0,0.0001898,2]
[339226028,1727376437013,-151.0,0.0001898,2]
[339226029,1727376437034,-151.0,0.0001898,2]
[339226030,1727376437056,-151.0,0.0001899,2]
[339226031,1727376437077,-152.669542,0.0001899,2]
[339226032,1727376437097,-151.0,0.0001899,2]
[339226033,1727376437118,-151.0,0.0001899,2]
[339226034,1727376437138,-593.319675,0.0001899,2]
[339226035,1727376437158,-593.319675,0.0001899,2]
[339226036,1727376437180,-151.0,0.0001899,2]
[339226037,1727376437203,-500.0,0.00019,7]
[339226038,1727376437229,-500.0,0.00019,7]
[339226039,1727376437253,-500.0,0.00019,7]
[339226040,1727376437274,-500.0,0.00019,7]
[339226041,1727376437294,-500.0,0.00019,7]
[339226042,1727376437319,-500.0,0.00019,7]
[339226043,1727376437339,-439.97,0.00019,7]
[339226044,1727376437361,-500.0,0.00019,7]
[339226045,1727376437383,-500.0,0.00019,7]
[339226046,1727376437407,-500.0,0.00019,7]
[339226047,1727376437429,-500.0,0.00019,7]
[339226048,1727376437454,-500.0,0.00019,7]
[339226049,1727376437476,-500.0,0.00019,7]
[339226050,1727376437503,-647.81,0.00019,7]
[339226051,1727376437528,-500.0,0.00019,7]
[339226052,1727376437549,-152.68017911,0.00019,2]
[339226053,1727376437570,-485.492217,0.00019,2]
[339226054,1727376437591,-485.492217,0.00019,2]
[339226055,1727376437611,-151.0,0.00019,2]
[339226056,1727376437631,-1945.645237,0.00019,2]
[339226057,1727376437654,-281.366768,0.00019,2]
[339226058,1727376437675,-281.366768,0.00019,2]
[339226059,1727376437696,-151.0,0.00019,2]
[339226060,1727376437716,-383.419228,0.00019,2]
[339226061,1727376437840,-383.419228,0.00019,2]
[339226062,1727376437864,-189.0,0.00019054,2]
[339226063,1727376437884,-151.0,0.00019068,2]
[339226064,1727376437904,-263.27608,0.00019068,2]
[339226065,1727376437925,-151.0,0.00019068,2]
[339226066,1727376437945,-151.0,0.00019068,2]
[339226067,1727376437965,-151.0,0.00019068,2]